bitfinex/quotes_ETHUSD_20241124
["timestamp","ask_amount","ask_price","bid_price","bid_amount"]
[1732484566305,0.72778789,3334.8,3334.5,2.39914]
[1732484566608,0.27991842,3334.7,3334.6,0.08915088]
[1732484568655,0.27991842,3334.7,3334.3,2.3993]
[1732484568826,3.7825,3334.9,3334.6,0.08915088]
[1732484569024,0.7274219,3334.8,3334.3,2.3993]
[1732484569226,0.27977765,3334.7,3334.3,2.3993]
[1732484569550,0.27977765,3334.6,3334.4,0.08915088]
[1732484569722,0.27977765,3334.5,3334.4,0.08915088]
[1732484570313,0.44758246,3334.8,3334.4,0.08915088]
[1732484570545,3.7825,3334.9,3334.4,0.08915088]
[1732484570546,0.27973908,3334.7,3334.4,0.08915088]
[1732484570749,0.27973908,3334.6,3334.4,0.08915088]
[1732484570961,0.27973847,3334.5,3334.4,0.08915088]
[1732484571323,0.27973122,3334.5,3334.4,0.08915088]
[1732484572214,3.7825,3334.9,3334.4,0.08915088]
[1732484572414,0.72734086,3334.8,3334.4,0.08915088]
[1732484572651,0.27974648,3334.7,3334.4,0.08915088]
[1732484572853,0.27974648,3334.6,3334.4,0.08915088]
[1732484573029,0.27974648,3334.6,3334.4,2.48837088]
[1732484573355,1.85255451,3334.9,3334.4,2.48837088]
[1732484573647,0.72725601,3334.8,3334.4,2.48837088]
[1732484573848,0.27971385,3334.7,3334.4,2.48837088]
[1732484574053,0.27971385,3334.6,3334.4,2.48837088]
[1732484574352,0.44753225,3334.8,3334.4,2.48837088]
[1732484574536,0.27969759,3334.7,3334.4,0.08915088]
[1732484574713,0.27969759,3334.6,3334.2,2.39937]
[1732484574913,0.27969759,3334.6,3334.3,0.08898658]
[1732484575114,0.4474844,3334.8,3334.3,2.39929]
[1732484575317,0.27967889,3334.7,3334.4,0.08898658]
[1732484575517,0.27967889,3334.6,3334.4,0.08898658]
[1732484575736,0.4474844,3334.8,3334.4,0.08898658]
[1732484575958,0.27967777,3334.7,3334.4,0.08898658]
[1732484576132,0.27967777,3334.6,3334.4,0.08898658]
[1732484576332,0.4474844,3334.8,3334.4,0.08898658]
[1732484576523,0.27968709,3334.7,3334.4,0.08898658]
[1732484576725,0.27968709,3334.6,3334.4,0.08898658]
[1732484577026,0.27968407,3334.5,3334.4,0.08898658]
[1732484577240,0.27969312,3334.5,3334.4,0.08898658]
[1732484577430,0.44751087,3334.8,3334.4,0.08898658]
[1732484577627,0.27969782,3334.7,3334.4,0.08898658]
[1732484577857,0.27969782,3334.6,3334.4,0.08898658]
[1732484578164,0.27969782,3334.5,3334.4,0.08898658]
[1732484578456,0.44754457,3334.8,3334.4,0.08898658]
[1732484578620,0.27971274,3334.7,3334.4,0.08898658]
[1732484578823,0.27971274,3334.6,3334.4,0.08898658]
[1732484579141,0.27971274,3334.5,3334.2,2.39936]
[1732484579347,3.78249,3334.9,3334.2,2.39936]
[1732484579668,0.72733428,3334.8,3334.2,2.39936]
[1732484579848,0.27974395,3334.7,3334.2,2.39936]
[1732484580051,0.27974395,3334.6,3334.2,2.39936]
[1732484580222,0.27974395,3334.5,3334.2,2.39936]
[1732484580423,2.99832,3335.2,3334.6,2.39908]
[1732484581154,0.72740515,3335.1,3334.6,2.39908]
[1732484581367,0.27977121,3335.0,3334.8,2.39889]
[1732484581667,0.4476801,3335.4,3334.9,2.39887]
[1732484581821,1.15457613,3335.3,3334.9,2.390886]
[1732484582017,0.27980302,3335.2,3334.9,2.390886]
[1732484582257,0.27980302,3335.1,3334.9,2.390886]
[1732484582421,0.87456879,3335.3,3334.9,2.390886]
[1732484582617,0.27967557,3335.2,3334.9,2.390886]
[1732484582833,0.27967557,3335.1,3334.9,2.390886]
[1732484583143,0.42709301,3335.3,3334.9,2.390886]
[1732484583347,0.2796984,3335.2,3334.9,2.390886]
[1732484583553,0.2796984,3335.1,3334.9,2.390886]
[1732484583760,0.8252,3335.5,3334.9,2.390886]
[1732484583982,0.8252,3335.5,3334.8,0.01672027]
[1732484583983,0.72706189,3335.4,3334.8,0.01672027]
[1732484584135,3.72530189,3335.3,3334.8,0.01672027]
[1732484584464,2.19011478,3335.5,3334.8,0.01672027]
[1732484584465,3.725359,3335.2,3334.8,0.01672027]
[1732484584676,0.27963919,3335.1,3334.8,0.01672027]
[1732484584839,0.27963919,3335.0,3334.9,0.08878943]
[1732484585367,0.27963919,3335.0,3334.8,0.01672027]
[1732484585677,0.27963919,3334.9,3334.8,0.01672027]
[1732484585884,0.44743417,3335.2,3334.8,0.01672027]
[1732484586171,0.27964571,3335.1,3334.8,0.01672027]
[1732484586343,0.27964327,3335.0,3334.8,0.01672027]
[1732484586535,3.44580924,3335.2,3334.8,0.01672027]
[1732484586536,0.27964327,3334.9,3334.8,0.01672027]
[1732484587049,2.99838,3335.2,3334.8,0.01672027]
[1732484587248,0.7712,3335.0,3334.8,0.01672027]
[1732484587460,0.27963798,3334.9,3334.8,0.01672027]
[1732484587841,3.27822798,3334.9,3334.8,0.01672027]
[1732484588040,3.72563757,3334.9,3334.8,0.01672027]
[1732484588280,4.49683757,3334.9,3334.8,0.01672027]
[1732484588458,5.33693284,3334.9,3334.8,0.01672027]
[1732484591558,5.33661574,3334.9,3334.8,0.01672027]
[1732484591982,6.24224082,3334.9,3334.8,0.01672027]
[1732484593544,6.24201203,3334.9,3334.8,0.01672027]
[1732484597047,5.33638695,3334.9,3334.8,0.01672027]
[1732484597349,5.33624989,3334.9,3334.8,0.01672027]
[1732484598257,4.56504989,3334.9,3334.8,0.01672027]
[1732484598459,0.72636462,3334.9,3334.8,0.01672027]
[1732484598786,0.27937101,3334.9,3334.8,0.10558479]
[1732484599279,0.27937101,3334.9,3334.8,0.08886452]
[1732484599662,0.27937101,3334.9,3334.6,2.39907]
[1732484599863,2.99841,3335.1,3334.8,0.08886452]
[1732484600084,0.279403,3335.0,3334.5,2.39915]
[1732484600283,2.99841,3335.1,3334.9,0.08886452]
[1732484600450,0.27939015,3335.0,3334.5,2.39915]
[1732484600650,0.27939015,3334.9,3334.5,2.39915]
[1732484600848,2.99841,3335.1,3334.5,2.39915]
[1732484601049,0.27936018,3335.0,3334.5,2.39915]
[1732484601260,0.27936018,3334.9,3334.5,2.39915]
[1732484601463,2.99841,3335.1,3334.5,2.878993]
[1732484601685,0.2793587,3335.0,3334.5,2.878993]
[1732484601989,0.27935936,3334.9,3334.5,2.878993]
[1732484602189,2.99841,3335.1,3334.5,2.878993]
[1732484602351,0.27935733,3335.0,3334.5,2.878993]
[1732484602551,0.27935733,3334.9,3334.5,2.878993]
[1732484602751,2.99841,3335.1,3334.5,2.878993]
[1732484602948,0.27935463,3335.0,3334.9,2.39887]
[1732484603178,3.44497567,3335.7,3335.0,2.39873]
[1732484603392,3.72440238,3335.6,3335.0,2.878512]
[1732484603545,0.27938671,3335.5,3335.0,2.39873]
[1732484603748,0.27938671,3335.4,3335.0,2.39873]
[1732484603999,2.99796,3335.6,3335.0,2.39873]
[1732484604294,0.2793366,3335.5,3335.0,2.39873]
[1732484604590,0.2793366,3335.4,3335.0,2.39873]
[1732484604762,2.99796,3335.6,3335.0,2.39873]
[1732484604956,0.27928241,3335.5,3335.0,2.39873]
[1732484605163,0.27928241,3335.4,3335.0,2.39873]
[1732484605374,2.99796,3335.6,3335.0,2.39873]
[1732484605573,0.27923473,3335.5,3335.0,2.39873]
[1732484605775,0.27923355,3335.4,3335.0,2.39873]
[1732484605969,2.99796,3335.6,3334.9,2.39887]
[1732484606174,3.27734652,3335.5,3334.3,0.90562508]
[1732484606386,3.27737652,3335.4,3334.8,2.39893]
[1732484606577,2.99823,3335.3,3334.6,2.39903]
[1732484606898,2.99823,3335.3,3334.7,0.4850706]
[1732484607304,2.9981,3335.5,3334.8,2.39893]
[1732484607503,0.7568,3335.8,3334.7,2.8840306]
[1732484607504,2.99822,3335.4,3334.7,2.39896]
[1732484607799,2.99822,3335.4,3334.7,2.77792557]
[1732484608462,2.99829,3335.3,3334.7,2.77792557]
[1732484608803,2.99832,3335.2,3334.5,2.3991]
[1732484609201,2.99842,3335.1,3334.5,2.3991]
[1732484609507,3.77752,3335.1,3334.5,2.3991]
[1732484609996,3.77752,3335.1,3334.5,3.17894]
[1732484611483,2.99865,3334.9,3334.3,2.3993]
[1732484613025,2.99865,3334.9,3334.2,3.0]
[1732484613026,2.9985,3335.0,3334.2,2.39936]
[1732484613235,2.9985,3335.0,3334.3,2.639166]
[1732484613724,3.77751,3335.1,3334.5,2.39915]
[1732484613943,2.99828,3335.3,3334.6,2.39908]
[1732484614109,2.99828,3335.3,3334.8,2.39893]
[1732484614288,0.8304,3335.4,3334.8,2.39893]
[1732484614492,2.9981,3335.5,3334.8,2.39893]
[1732484614793,2.99805,3335.5,3334.9,2.48731436]
[1732484615030,2.99805,3335.5,3335.0,2.39879]
[1732484615330,0.8304,3335.6,3335.1,2.39871]
[1732484615490,0.8304,3335.6,3335.1,2.48719436]
[1732484615690,0.8304,3335.6,3335.1,0.08848436]
[1732484615943,0.8304,3335.6,3335.1,2.48718436]
[1732484616228,0.8304,3335.8,3335.3,2.39856]
[1732484616428,0.8304,3335.8,3335.1,2.3987]
[1732484616722,0.8304,3335.8,3335.4,0.07198436]
[1732484616937,0.8304,3335.8,3335.1,2.3987]
[1732484616938,2.99774,3335.9,3334.9,0.90562508]
[1732484617116,3.80497,3336.0,3335.5,0.08793436]
[1732484617293,0.27886791,3335.9,3335.3,2.39854]
[1732484617494,0.77081351,3335.9,3335.6,0.08793436]
[1732484617830,0.77081351,3335.9,3335.7,0.08793436]
[1732484618005,3.80491,3336.0,3335.7,0.08793436]
[1732484618205,3.80491,3336.0,3335.4,2.39846]
[1732484618447,3.80491,3336.0,3335.8,0.08793436]
[1732484618591,3.80491,3336.0,3335.4,2.39846]
[1732484618792,2.99769,3335.9,3335.4,2.39846]
[1732484619097,3.76850551,3335.9,3335.5,0.08500321]
[1732484620196,2.99778,3335.8,3335.2,2.3986]
[1732484620397,2.99778,3335.8,3335.6,0.08500321]
[1732484620598,0.75735855,3335.7,3335.2,2.3986]
[1732484620811,2.99778,3335.8,3335.7,0.08500321]
[1732484621030,2.99769,3335.9,3335.0,2.39878]
[1732484621243,2.99789,3335.7,3334.7,0.90562508]
[1732484621535,3.80536,3335.5,3335.0,2.39876]
[1732484621739,2.99814,3335.4,3334.8,2.39892]
[1732484622510,3.76904351,3335.4,3334.8,2.39892]
[1732484622709,2.99814,3335.4,3334.8,2.39892]
[1732484623040,2.99823,3335.3,3334.8,2.39892]
[1732484624095,0.8073,3335.5,3335.1,2.39868]
[1732484624307,2.99797,3335.6,3334.9,2.48381321]
[1732484624600,2.99797,3335.6,3335.0,0.08487185]
[1732484625030,2.99797,3335.6,3335.0,2.48363185]
[1732484625439,2.99805,3335.5,3335.0,0.08487185]
[1732484626056,0.58254141,3335.6,3335.0,0.08487185]
[1732484626222,0.58254141,3335.6,3335.0,2.48364185]
[1732484626223,2.99796,3335.6,3335.0,2.48364185]
[1732484626408,2.99796,3335.6,3335.1,2.39872]
[1732484626746,2.99796,3335.6,3335.1,2.48326185]
[1732484627110,0.8073,3335.7,3335.1,2.48326185]
[1732484627305,0.8073,3335.7,3335.2,2.39864]
[1732484627548,2.99782,3335.8,3335.2,2.39864]
[1732484627745,0.27913315,3335.7,3335.2,2.39864]
[1732484627950,3.297602,3335.8,3335.2,2.39864]
[1732484628144,0.27912376,3335.7,3335.3,0.08454185]
[1732484628453,0.27912376,3335.6,3335.3,0.08454185]
[1732484628619,0.7103602,3335.7,3335.3,0.08454185]
[1732484628820,0.69363993,3335.7,3335.3,0.08454185]
[1732484629214,0.27919596,3335.6,3335.3,2.48309185]
[1732484629417,3.297572,3335.8,3335.3,0.08454185]
[1732484629619,0.27922172,3335.7,3335.2,2.39865]
[1732484629930,0.2792212,3335.6,3335.4,0.0842744]
[1732484630139,0.27922046,3335.7,3335.1,0.90562508]
[1732484630354,0.8084,3336.0,3335.5,2.4826644]
[1732484630659,0.27923367,3335.9,3335.6,0.0842744]
[1732484630959,0.27923367,3335.9,3335.1,2.39871]
[1732484630960,2.99787,3335.7,3335.1,2.39871]
[1732484631651,2.99799,3335.6,3334.9,2.39881]
[1732484631854,2.99799,3335.6,3334.9,3.02925351]
[1732484632150,3.24172438,3335.9,3334.9,3.02925351]
[1732484632354,2.99787,3335.7,3334.9,3.02925351]
[1732484632656,2.99787,3335.7,3335.1,2.39869]
[1732484633161,2.99787,3335.7,3335.2,2.39865]
[1732484636959,0.8084,3336.0,3335.2,2.39865]
[1732484637165,0.27919451,3335.9,3335.3,2.39855]
[1732484637467,0.27919451,3335.8,3335.3,2.39855]
[1732484637768,4.26538481,3336.0,3335.3,2.39855]
[1732484637944,0.27919142,3335.9,3335.3,2.39855]
[1732484638148,0.27919142,3335.8,3335.4,2.39849]
[1732484638466,1.26772481,3336.0,3335.4,2.69789]
[1732484638467,4.26536481,3336.0,3335.4,2.69789]
[1732484638667,0.27920102,3335.9,3335.4,2.39849]
[1732484638836,0.27920102,3335.8,3335.2,2.39863]
[1732484639033,2.9977,3335.9,3335.3,2.39852]
[1732484639239,0.27919756,3335.8,3335.3,2.39852]
[1732484639468,0.70828176,3335.8,3335.0,2.39877]
[1732484639656,0.7959,3335.6,3335.0,2.39877]
[1732484639851,0.7959,3335.6,3335.1,2.39872]
[1732484640366,3.79388,3335.6,3335.1,2.39872]
[1732484640526,0.7959,3335.6,3335.1,2.39872]
[1732484640869,0.7959,3335.6,3335.2,2.3986]
[1732484641970,0.7959,3335.6,3335.4,2.39848]
[1732484642141,0.7959,3335.9,3335.4,2.39848]
[1732484642467,0.27943351,3335.8,3335.4,2.39848]
[1732484642636,0.7959,3335.9,3335.4,2.39848]
[1732484642964,0.27942469,3335.8,3335.4,2.39848]
[1732484643174,0.7959,3335.9,3335.4,2.39848]
[1732484643470,0.27952162,3335.8,3335.4,2.39848]
[1732484643639,0.27952162,3335.7,3335.4,2.39848]
[1732484643827,0.7959,3335.9,3335.4,2.39848]
[1732484644023,0.27951886,3335.8,3335.4,2.39848]
[1732484644225,0.7959,3335.9,3335.2,2.3986]
[1732484644226,0.27951886,3335.7,3335.2,2.3986]
[1732484644423,0.7959,3335.9,3335.2,2.3986]
[1732484644663,3.27738282,3335.8,3335.2,2.3986]
[1732484644863,0.27957282,3335.7,3335.3,2.47987921]
[1732484645051,4.24091737,3335.9,3335.3,2.47987921]
[1732484645247,0.27957446,3335.8,3335.3,2.47987921]
[1732484645471,0.27957446,3335.7,3335.3,2.47987921]
[1732484645671,3.7936,3335.9,3335.3,2.47987921]
[1732484645969,0.27960501,3335.8,3335.4,2.3985]
[1732484646125,0.27960501,3335.7,3335.4,2.3985]
[1732484646328,3.7936,3335.9,3335.5,0.07861824]
[1732484646636,0.27961361,3335.8,3335.5,0.07861824]
[1732484646842,1.475005,3335.9,3335.5,0.07861824]
[1732484646843,0.27961361,3335.7,3335.5,0.07861824]
[1732484647165,0.7959,3335.9,3335.5,0.07861824]
[1732484647525,0.27963835,3335.8,3335.5,2.47704824]
[1732484647764,0.27963835,3335.8,3335.5,0.07861824]
[1732484647966,0.27963835,3335.7,3335.5,0.07861824]
[1732484648128,0.7802,3336.1,3335.6,2.39836]
[1732484648333,2.99727,3336.4,3335.8,2.3982]
[1732484648334,0.72710012,3336.0,3335.8,2.3982]
[1732484648639,0.27965389,3335.9,3335.8,2.3982]
[1732484649962,3.77747,3336.4,3335.8,2.3982]
[1732484650137,0.72708345,3336.3,3335.8,2.3982]
[1732484650334,0.72708345,3336.2,3335.8,2.39817]
[1732484650539,0.27964748,3336.1,3335.8,2.39817]
[1732484650870,0.27968419,3336.0,3335.8,2.39817]
[1732484651080,1.19269631,3336.3,3335.6,2.39834]
[1732484651251,0.7271542,3336.2,3335.7,2.39829]
[1732484651433,0.27965949,3336.1,3335.7,2.39829]
[1732484651634,0.27965949,3336.0,3335.4,0.90562508]
[1732484651943,0.27965949,3335.9,3335.5,2.39839]
[1732484652263,2.99744,3336.2,3335.5,5.36702551]
[1732484652577,3.72475566,3336.1,3335.5,2.39838]
[1732484652759,0.27968679,3336.0,3335.6,2.39836]
[1732484652958,0.27968679,3335.9,3335.7,2.39829]
[1732484653149,2.99744,3336.2,3335.7,2.39829]
[1732484653344,0.72728693,3336.1,3335.7,2.39829]
[1732484653561,0.27972519,3336.0,3335.7,2.39829]
[1732484653738,0.27972519,3335.9,3335.7,2.39829]
[1732484654108,2.99744,3336.2,3335.7,2.39829]
[1732484654109,0.44756136,3336.1,3335.7,2.39829]
[1732484654373,0.27971163,3336.0,3335.7,2.39829]
[1732484654575,0.27971163,3335.9,3335.7,2.39829]
[1732484654879,0.4475639,3336.1,3335.7,2.39829]
[1732484655177,0.27972564,3336.0,3335.7,2.39829]
[1732484655371,0.27972564,3335.9,3335.7,2.39829]
[1732484655550,0.4475639,3336.1,3335.7,2.39829]
[1732484655750,0.27972957,3336.0,3335.7,2.39829]
[1732484655979,0.27972957,3335.9,3335.7,2.39829]
[1732484656147,0.4475639,3336.1,3335.7,2.39829]
[1732484656473,3.77744,3336.4,3335.7,2.39829]
[1732484656474,0.27974996,3336.0,3335.7,2.39825]
[1732484656671,0.27974996,3335.9,3335.7,2.39825]
[1732484656972,3.44502331,3336.2,3335.7,2.39825]
[1732484657177,0.72735216,3336.1,3335.7,2.39825]
[1732484657386,0.27975885,3336.0,3335.7,2.39825]
[1732484657676,0.27975885,3335.9,3335.7,2.39825]
[1732484657878,0.4476396,3336.1,3335.7,2.39825]
[1732484658079,0.27981465,3336.0,3335.6,2.39836]
[1732484658285,0.4155304,3336.2,3335.5,2.39841]
[1732484658448,0.72753905,3336.1,3335.7,2.39829]
[1732484658784,0.27982271,3336.0,3335.7,2.39829]
[1732484658986,0.27982271,3335.9,3335.7,2.39829]
[1732484659187,0.44771983,3336.1,3335.7,2.39829]
[1732484659384,0.27984072,3336.0,3335.7,2.39829]
[1732484659588,0.27984072,3335.9,3335.7,2.39829]
[1732484659894,0.27984072,3335.8,3335.7,2.39829]
[1732484660381,2.99736,3336.3,3335.7,2.39829]
[1732484660585,1.40502936,3336.2,3335.7,2.39829]
[1732484660755,0.72755836,3336.1,3335.7,2.39829]
[1732484660959,0.27983014,3336.0,3335.7,2.39829]
[1732484661162,0.27983014,3335.9,3335.6,2.39834]
[1732484661395,0.27983014,3335.8,3335.6,2.39834]
[1732484661565,0.44770341,3336.2,3335.6,2.39834]
[1732484661768,0.72751708,3336.1,3335.6,2.39834]
[1732484662075,0.27981367,3336.0,3335.6,2.39834]
[1732484662280,0.27981367,3335.9,3335.6,2.39834]
[1732484662463,0.44772126,3336.1,3335.6,2.39834]
[1732484662662,0.27976826,3336.0,3335.6,2.39834]
[1732484662862,6.672253,3336.3,3335.6,2.39834]
[1732484662863,0.27976826,3335.9,3335.6,2.39834]
[1732484663062,0.27976826,3335.8,3335.6,2.39834]
[1732484663262,0.44762559,3336.0,3335.8,2.39821]
[1732484663483,0.27977973,3335.9,3335.7,0.479677]
[1732484663686,0.44762559,3336.2,3335.6,2.39831]
[1732484663893,2.99738,3336.3,3335.8,2.39822]
[1732484663894,0.27979237,3336.1,3335.8,2.39822]
[1732484664049,0.27979237,3336.0,3335.8,2.39822]
[1732484664246,2.99738,3336.3,3335.8,2.39822]
[1732484664490,0.72742949,3336.2,3335.8,2.39822]
[1732484664697,0.27978057,3336.1,3335.8,2.39822]
[1732484664899,0.27978057,3336.0,3335.8,2.39822]
[1732484665074,3.77745,3336.4,3335.8,2.39822]
[1732484665250,0.72740358,3336.3,3335.8,2.39822]
[1732484665456,0.72740358,3336.2,3335.9,2.39813]
[1732484665650,0.7802,3336.4,3335.9,2.39813]
[1732484665888,0.72744805,3336.3,3335.9,2.39813]
[1732484666098,0.72744805,3336.2,3335.9,2.39813]
[1732484666366,0.27978771,3336.1,3335.8,2.39821]
[1732484666763,0.27978771,3336.0,3335.9,2.39814]
[1732484667799,0.27978771,3336.0,3335.3,0.90562508]
[1732484667997,2.99739,3336.3,3335.7,2.39822]
[1732484668303,0.7273797,3336.2,3335.8,2.39821]
[1732484668459,0.7273797,3336.2,3335.7,2.39822]
[1732484668460,0.27976084,3336.1,3335.7,2.39822]
[1732484668661,0.27976084,3336.0,3335.7,2.39822]
[1732484668977,0.8145,3336.7,3335.7,0.02997656]
[1732484669180,0.72741184,3336.6,3336.2,2.39793]
[1732484669390,0.72741184,3336.5,3336.4,2.39779]
[1732484669684,0.44766098,3337.1,3336.7,2.39753]
[1732484669996,2.99645,3337.3,3336.6,2.39763]
[1732484670199,0.44768269,3337.0,3336.6,2.39763]
[1732484670507,3.44422786,3337.2,3336.4,2.39776]
[1732484670662,0.27957367,3337.1,3336.4,2.39776]
[1732484670863,0.27957367,3337.0,3336.4,2.39776]
[1732484671203,2.99661,3337.1,3336.4,3.00122544]
[1732484671369,0.27943151,3337.0,3336.6,2.3976]
[1732484671576,2.99656,3337.2,3336.6,2.3976]
[1732484671787,0.27942525,3337.1,3336.6,2.3976]
[1732484671989,0.27942525,3337.0,3336.4,2.39773]
[1732484672201,0.27942525,3336.9,3336.4,2.39773]
[1732484672401,3.44346146,3337.2,3336.4,2.72806551]
[1732484672567,0.27933447,3337.1,3336.5,2.39767]
[1732484672763,0.27933447,3337.0,3336.5,2.39767]
[1732484672962,2.99661,3337.1,3336.5,2.39767]
[1732484673202,0.2793363,3337.0,3336.5,2.39767]
[1732484673376,2.99693,3336.8,3336.1,2.39794]
[1732484674094,0.8145,3337.0,3336.3,2.39786]
[1732484674288,0.8145,3337.0,3336.6,2.39762]
[1732484674465,2.99655,3337.2,3336.6,2.39762]
[1732484674806,0.2792293,3337.1,3336.6,2.39762]
[1732484674976,2.99655,3337.2,3336.7,0.077971]
[1732484675175,0.27927442,3337.1,3336.7,2.475501]
[1732484675400,4.192028,3337.3,3336.7,2.475501]
[1732484675700,3.27573045,3337.2,3336.7,2.475501]
[1732484675900,0.27921045,3337.1,3336.7,2.475501]
[1732484676065,2.99652,3337.2,3336.7,2.475501]
[1732484676261,0.27916116,3337.1,3336.7,0.077971]
[1732484676458,1.195588,3337.3,3336.7,2.39756]
[1732484676659,0.27917231,3337.2,3336.8,0.077971]
[1732484676863,0.27917054,3337.1,3336.7,2.39756]
[1732484677158,4.192028,3337.3,3336.9,0.077971]
[1732484677362,0.27912504,3337.2,3336.7,2.39756]
[1732484677563,4.5297808,3337.3,3337.0,0.077971]
[1732484677883,0.27913767,3337.2,3337.1,0.077971]
[1732484678205,0.27913767,3337.2,3336.7,2.39756]
[1732484678391,3.81094,3337.3,3337.1,0.077971]
[1732484678595,0.27911649,3337.2,3336.7,2.39756]
[1732484678781,4.192034,3337.3,3336.7,2.39756]
[1732484679106,0.27911444,3337.2,3336.8,0.077971]
[1732484679276,4.192034,3337.3,3336.8,0.077971]
[1732484679478,0.27907688,3337.2,3336.8,0.077971]
[1732484679779,4.192034,3337.3,3336.9,0.077971]
[1732484679989,0.27906758,3337.2,3336.9,0.077971]
[1732484680186,4.192034,3337.3,3336.9,0.077971]
[1732484680408,0.27903588,3337.2,3336.7,2.39756]
[1732484680614,0.27903588,3337.2,3337.0,0.077971]
[1732484680927,0.27903588,3337.2,3337.1,0.077971]
[1732484681071,0.27903588,3337.2,3336.7,2.39756]
[1732484681274,2.99652,3337.2,3337.1,0.077971]
[1732484681475,3.27553571,3337.2,3336.6,2.39764]
[1732484681689,2.99652,3337.2,3337.1,0.077971]
[1732484681901,0.8145,3337.1,3336.2,2.39791]
[1732484682123,2.99684,3336.9,3336.3,2.39785]
[1732484684177,2.99684,3336.9,3336.2,3.0]
[1732484684178,2.99711,3336.6,3335.9,2.39814]
[1732484684377,2.99711,3336.6,3336.0,6.02844651]
[1732484684613,2.99711,3336.6,3336.0,3.63037651]
[1732484684915,2.99711,3336.6,3336.0,6.02843651]
[1732484686125,2.99711,3336.6,3336.0,3.63037651]
[1732484687312,2.99711,3336.6,3336.0,6.02843651]
[1732484688742,2.99711,3336.6,3336.1,3.0]
[1732484689897,2.99711,3336.6,3336.2,0.07738498]
[1732484690521,2.99726,3336.4,3336.2,0.07738498]
[1732484690708,3.76793,3336.3,3335.8,2.39817]
[1732484691301,0.7706,3336.3,3335.8,2.39817]
[1732484692039,0.7706,3336.3,3335.9,5.39815]
[1732484692243,2.9971,3336.6,3336.0,2.39806]
[1732484692244,0.7706,3336.5,3336.0,2.39806]
[1732484693436,0.7706,3336.5,3336.1,2.398]
[1732484693636,3.76748,3336.8,3336.1,2.398]
[1732484693839,0.27945568,3336.7,3336.1,2.39795]
[1732484694049,3.76748,3336.8,3336.2,2.39792]
[1732484694339,0.27945579,3336.7,3336.3,2.39782]
[1732484694536,2.99671,3337.0,3336.3,2.39782]
[1732484694749,0.27949525,3336.9,3336.3,2.39782]
[1732484694950,0.27949525,3336.8,3336.3,2.39782]
[1732484695108,0.27949525,3336.7,3336.3,2.39782]
[1732484695450,2.99679,3336.9,3336.3,2.39782]
[1732484695656,0.27952662,3336.8,3336.3,2.39782]
[1732484695816,0.27952662,3336.7,3336.3,2.39782]
[1732484696027,2.99679,3336.9,3336.3,2.39782]
[1732484696206,0.27958729,3336.8,3336.3,2.39782]
[1732484696403,2.99689,3336.8,3336.3,2.39782]
[1732484696713,0.27956408,3336.7,3336.3,2.39782]
[1732484696917,0.7706,3336.5,3335.9,5.39814]
[1732484697430,0.7706,3336.5,3335.9,2.39814]
[1732484698542,0.27972061,3336.4,3335.9,2.39814]
[1732484698724,2.99731,3336.4,3335.8,3.0]
[1732484698918,2.99731,3336.4,3335.8,5.39822]
[1732484700005,2.99731,3336.4,3335.6,2.39831]
[1732484700006,2.99747,3336.2,3335.6,2.39831]
[1732484700255,3.70657154,3336.4,3335.7,2.39824]
[1732484700541,0.27974371,3336.3,3335.7,5.39824]
[1732484700847,3.70657154,3336.4,3335.7,2.39828]
[1732484700848,0.70926154,3336.4,3335.7,2.39828]
[1732484701147,3.27708516,3336.3,3335.7,2.39828]
[1732484701347,2.99733,3336.3,3335.7,2.39828]
[1732484703863,2.99757,3336.1,3335.5,2.39844]
[1732484704039,3.80007,3336.1,3335.5,2.39844]
[1732484705159,3.80007,3336.1,3335.6,0.07776468]
[1732484708852,3.80007,3336.1,3335.6,3.07776468]
[1732484709048,3.80007,3336.1,3335.6,0.07776468]
[1732484709571,0.8025,3336.1,3335.6,3.07776468]
[1732484709778,0.8025,3336.1,3335.7,5.39822]
[1732484709947,0.8025,3336.1,3335.7,3.0]
[1732484710146,0.8025,3336.1,3335.6,3.39833898]
[1732484710346,0.8025,3336.1,3335.8,0.07776468]
[1732484710663,0.8025,3336.1,3335.6,5.39836]
[1732484710832,0.8025,3336.1,3335.9,0.07776468]
[1732484711034,0.8025,3336.1,3335.7,5.39828]
[1732484711346,0.8025,3336.1,3335.7,2.39828]
[1732484711546,0.8025,3336.1,3335.8,0.07776468]
[1732484712270,0.8025,3336.1,3335.6,5.39834]
[1732484712437,0.8025,3336.1,3335.9,0.07776468]
[1732484712638,0.8025,3336.1,3335.6,5.39834]
[1732484712872,0.8025,3336.1,3336.0,0.07776468]
[1732484713336,0.8025,3336.1,3335.6,5.39834]
[1732484714069,0.8025,3336.1,3335.7,0.07776468]
[1732484714436,3.80005,3336.1,3335.7,0.07776468]
[1732484714632,2.99776,3335.9,3335.7,0.07776468]
[1732484714956,2.99776,3335.9,3335.8,0.07780222]
[1732484715134,2.99776,3335.9,3335.3,5.39857]
[1732484715335,2.99776,3335.9,3335.8,0.07780222]
[1732484715568,3.677553,3335.9,3335.3,5.39857]
[1732484715771,2.99776,3335.9,3335.8,0.07780222]
[1732484716082,2.99767,3336.0,3335.3,3.0]
[1732484716239,2.99769,3335.9,3335.8,0.07780222]
[1732484716574,2.99781,3335.8,3335.2,5.72903351]
[1732484716876,2.99788,3335.7,3335.3,0.80186287]
[1732484717083,2.99788,3335.7,3334.9,2.39885]
[1732484717084,2.99815,3335.4,3334.9,2.39885]
[1732484717455,2.99815,3335.4,3334.7,4.79793]
[1732484717763,2.99815,3335.4,3334.8,2.39889]
[1732484718146,0.7622,3335.3,3334.8,2.39889]
[1732484718477,3.76047,3335.3,3334.9,0.33045151]
[1732484718639,3.76047,3335.3,3334.7,3.0]
[1732484718834,3.76047,3335.3,3334.7,5.39901]
[1732484719039,0.7622,3335.3,3334.8,2.39893]
[1732484719366,3.76044,3335.3,3335.1,0.00784039]
[1732484719742,0.7622,3335.3,3335.1,0.00784039]
[1732484719942,3.76043,3335.3,3335.2,0.07810234]
[1732484722075,4.436285,3335.3,3335.2,0.07810234]
[1732484722581,2.99832,3335.2,3335.1,0.00784039]
[1732484722738,2.99832,3335.2,3335.1,0.08601777]
[1732484722941,2.99832,3335.2,3335.1,0.00784039]